bitfinex-derivatives/quotes_ETHF0:USTF0_20241008
["timestamp","ask_amount","ask_price","bid_price","bid_amount"]
[1728369349069,1.21129,2432.6,2432.5,0.4112]
[1728369349374,1.21129,2432.6,2432.3,3.21]
[1728369349577,1.21129,2432.6,2432.5,0.4112]
[1728369349976,0.4019,2432.7,2432.5,3.21]
[1728369350190,0.096,2433.6,2432.5,3.21]
[1728369350191,3.32986046,2433.2,2432.6,0.3927]
[1728369350371,0.41112,2433.0,2432.8,3.21]
[1728369350575,0.41113,2432.9,2432.8,3.62114]
[1728369350884,0.41113,2433.0,2432.8,3.62114]
[1728369351078,0.41113,2433.0,2432.9,0.41113]
[1728369351276,0.41113,2433.0,2432.8,3.62114]
[1728369351476,0.8304,2433.0,2432.9,0.41113]
[1728369351879,1.24151,2433.0,2432.9,0.41113]
[1728369352081,0.8304,2433.0,2432.9,0.41113]
[1728369352282,3.2078,2433.2,2432.9,4.1104]
[1728369352476,3.2078,2433.2,2433.1,0.4111]
[1728369352683,3.61888,2433.2,2433.1,0.4111]
[1728369353084,3.2078,2433.2,2433.1,0.4111]
[1728369353383,3.61888,2433.2,2433.1,0.4111]
[1728369353686,8.34512,2433.2,2432.8,0.41114]
[1728369353878,0.41112,2433.0,2432.9,0.41112]
[1728369354078,1.02777,2433.1,2432.6,3.21]
[1728369354278,0.41115,2432.8,2432.7,0.41115]
[1728369354580,0.41116,2432.7,2432.6,3.62117]
[1728369354785,1.2136,2432.9,2432.6,3.21]
[1728369355177,0.41115,2432.8,2432.6,3.21]
[1728369355379,1.2136,2432.9,2432.6,3.21]
[1728369355578,0.41115,2432.8,2432.6,3.62117]
[1728369355872,0.41115,2432.8,2432.4,4.9128]
[1728369355873,0.41119,2432.6,2432.4,3.6212]
[1728369356078,0.41119,2432.6,2432.5,0.4112]
[1728369356286,1.02787,2432.8,2432.5,0.4112]
[1728369356487,1.02787,2432.8,2432.4,3.21]
[1728369356488,0.41118,2432.6,2432.4,3.21]
[1728369356689,0.41118,2432.6,2432.5,0.4112]
[1728369356885,1.62474,2432.9,2432.4,4.23803]
[1728369357091,1.62474,2432.9,2432.7,3.21]
[1728369357381,1.2136,2432.9,2432.8,0.41115]
[1728369357976,3.61889,2433.2,2433.1,0.4111]
[1728369358173,3.2078,2433.2,2433.1,0.4111]
[1728369358379,3.61888,2433.2,2433.1,0.4111]
[1728369359081,0.4111,2433.1,2433.0,3.62111]
[1728369359780,0.8381,2433.1,2433.0,3.21]
[1728369359981,0.427,2433.1,2432.7,4.28543587]
[1728369360479,0.41115,2432.8,2432.7,4.69659587]
[1728369360691,0.41115,2432.8,2432.7,1.48659587]
[1728369361086,0.41115,2432.8,2432.7,3.62116]
[1728369361390,0.41114,2432.9,2432.7,4.69659587]
[1728369361591,1.24855,2432.8,2432.7,4.69659587]
[1728369362083,1.24855,2432.8,2432.7,4.28543587]
[1728369363489,1.24855,2432.8,2432.7,3.21]
[1728369363683,5.35895,2432.8,2432.7,3.21]
[1728369364091,5.35895,2432.8,2432.6,0.41118]
[1728369364092,0.41118,2432.7,2432.6,0.41118]
[1728369364288,0.81558,2432.7,2432.6,0.41118]
[1728369364683,0.4044,2432.7,2432.6,0.41118]
[1728369365197,0.8374,2432.8,2432.7,0.41116]
[1728369365490,0.4189,2432.8,2432.7,3.62116]
[1728369365709,0.4044,2433.0,2432.7,3.21]
[1728369365986,1.24639,2433.2,2433.1,0.4111]
[1728369366190,0.4111,2433.1,2433.0,0.4111]
[1728369366392,0.41111,2433.0,2432.9,3.62112]
[1728369366583,0.41111,2433.0,2432.9,0.41112]
[1728369366994,0.41111,2433.1,2433.0,0.41111]
[1728369368889,0.41112,2433.0,2432.9,0.41112]
[1728369369395,0.41109,2433.2,2433.1,0.4111]
[1728369369600,0.7964,2433.8,2433.1,7.26523643]
[1728369369895,0.7964,2433.8,2433.7,3.21]
[1728369370289,0.7964,2433.8,2433.7,3.62099]
[1728369370599,1.02723,2434.4,2433.7,3.62099]
[1728369370600,3.2078,2434.6,2433.7,10.07494142]
[1728369370786,3.2078,2434.0,2433.5,5.96614142]
[1728369370991,3.2078,2434.0,2433.5,4.897]
[1728369370992,0.7914,2433.9,2433.5,4.897]
[1728369371192,3.2078,2434.0,2433.5,3.21]
[1728369371393,0.387,2434.1,2433.7,3.21]
[1728369371801,0.79794,2434.1,2433.8,0.41097]
[1728369372501,0.41095,2434.0,2433.7,3.62098]
[1728369372705,0.387,2434.1,2433.7,3.62099]
[1728369372999,3.2078,2433.9,2433.5,3.21]
[1728369373195,3.2078,2433.6,2433.3,3.21]
[1728369373389,3.2078,2434.0,2433.5,3.21]
[1728369373994,0.41098,2433.9,2433.6,0.41101]
[1728369374500,0.4275,2433.8,2433.5,3.21]
[1728369374693,0.411,2433.7,2433.5,3.21]
[1728369375000,0.4082,2433.6,2433.5,3.62102]
[1728369377192,0.4082,2433.6,2433.5,3.62103]
[1728369377400,1.23431,2433.6,2433.5,3.21]
[1728369377897,5.34391,2433.6,2433.5,3.21]
[1728369378494,1.23431,2433.6,2433.5,3.21]
[1728369378701,1.23431,2433.6,2433.5,3.62103]
[1728369378995,1.23431,2433.6,2433.5,3.21]
[1728369379399,0.8233,2433.6,2433.5,3.62103]
[1728369379602,5.34391,2433.6,2433.5,3.21]
[1728369379798,1.23431,2433.6,2433.5,3.21]
[1728369380103,5.34391,2433.6,2433.5,3.21]
[1728369380696,0.41103,2433.5,2433.4,3.21]
[1728369381204,4.52063,2433.5,2433.4,3.21]
[1728369381503,7.72843,2433.5,2433.4,3.21]
[1728369381802,4.52063,2433.5,2433.4,3.21]
[1728369382108,0.41103,2433.5,2433.4,3.21]
[1728369383991,4.52063,2433.5,2433.4,3.21]
[1728369385605,0.41103,2433.5,2433.4,3.21]
[1728369385998,4.52063,2433.5,2433.4,3.21]
[1728369389011,4.64064052,2433.5,2433.4,3.21]
[1728369389202,4.52063,2433.5,2433.4,3.21]
[1728369389507,0.41103,2433.5,2433.4,3.21]
[1728369389708,1.02767,2433.3,2433.1,3.21]
[1728369389898,0.41108,2433.2,2433.1,3.21]
[1728369390504,0.4111,2433.1,2433.0,0.41111]
[1728369391010,1.02771,2433.2,2432.9,3.21]
[1728369391305,0.41111,2433.0,2432.9,3.62112]
[1728369391507,4.23548,2433.3,2432.5,3.6648]
[1728369391508,0.4193,2433.1,2432.5,3.6648]
[1728369391717,4.23559,2433.0,2432.6,0.41118]
[1728369392010,0.41115,2432.8,2432.7,0.41116]
[1728369392209,0.41114,2432.9,2432.8,0.41115]
[1728369392411,0.41115,2432.8,2432.7,3.62116]
[1728369394206,0.41115,2432.8,2432.3,0.096]
[1728369394207,0.4112,2432.5,2432.3,0.096]
[1728369394405,3.61901,2432.5,2432.3,0.41122]
[1728369394706,3.61901,2432.5,2432.1,0.41126]
[1728369394707,0.41125,2432.2,2432.1,0.41126]
[1728369394911,3.2078,2432.5,2432.0,3.9572]
[1728369395109,3.2078,2432.5,2432.2,0.41124]
[1728369395303,0.41123,2432.4,2432.2,0.41124]
[1728369395702,3.2078,2432.5,2432.0,3.9572]
[1728369395908,4.65502,2432.5,2432.0,3.9572]
[1728369396114,0.41125,2432.2,2432.1,0.41126]
[1728369396412,0.41124,2432.3,2432.1,0.41126]
[1728369396612,0.41124,2432.3,2432.2,0.41125]
[1728369397013,0.41124,2432.3,2432.0,3.9572]
[1728369397213,4.65502,2432.5,2432.1,0.41125]
[1728369397413,0.41125,2432.2,2432.1,0.41125]
[1728369397605,4.65502,2432.5,2432.1,0.41125]
[1728369397811,0.41124,2432.3,2432.1,0.41125]
[1728369398413,0.8348,2432.6,2432.3,0.41123]
[1728369398619,0.41121,2432.5,2432.2,3.21]
[1728369398821,1.24599,2432.6,2432.2,3.21]
[1728369399121,1.24599,2432.6,2432.5,0.4112]
[1728369399521,1.24599,2432.6,2432.4,0.4112]
[1728369401122,0.4112,2432.5,2432.4,0.4112]
[1728369401524,1.24599,2432.6,2432.4,0.4112]
[1728369401825,0.4112,2432.5,2432.4,0.4112]
[1728369402325,0.41122,2432.4,2432.3,0.41123]
[1728369402626,0.8348,2432.6,2432.3,0.41123]
[1728369402821,0.41123,2432.3,2432.2,3.62124]
[1728369403326,0.41123,2432.3,2432.2,7.73244]
[1728369404120,1.86278,2432.6,2432.2,7.73244]
[1728369404326,1.86278,2432.6,2432.2,3.21]
[1728369404513,0.41123,2432.3,2432.2,3.62124]
[1728369405631,0.41123,2432.4,2432.2,3.62124]
[1728369405817,3.2078,2432.5,2432.2,3.21]
[1728369406127,0.41123,2432.3,2432.0,3.9572]
[1728369406326,4.23582,2432.5,2432.1,0.41125]
[1728369406520,0.41126,2432.2,2432.0,4.36847]
[1728369406824,0.41126,2432.2,2432.1,0.41127]
[1728369407025,0.41126,2432.2,2432.0,3.9572]
[1728369407327,0.41126,2432.2,2432.0,4.36847]
[1728369407930,1.02804,2432.4,2432.0,4.36847]
[1728369408125,0.41126,2432.2,2432.0,4.36847]
[1728369408627,3.2078,2432.5,2432.2,0.41125]
[1728369408827,0.41123,2432.3,2432.2,0.41125]
[1728369409026,3.2078,2432.5,2432.0,3.9572]
[1728369409027,0.41122,2432.4,2432.0,3.9572]
[1728369409223,3.2078,2432.5,2432.3,0.41123]
[1728369409427,0.41121,2432.4,2432.2,0.41124]
[1728369410125,4.23582,2432.5,2432.0,0.3885]
[1728369410330,7.44582,2432.5,2431.8,3.5665]
[1728369410531,0.41127,2432.1,2432.0,0.41128]
[1728369410830,0.41127,2432.1,2431.8,0.3587]
[1728369411133,0.41127,2432.1,2432.0,0.41128]
[1728369411521,0.41127,2432.1,2431.9,0.41129]
[1728369411726,0.41127,2432.1,2431.8,0.3587]
[1728369411727,0.4004,2432.1,2431.8,0.3587]
[1728369411925,0.81168,2432.1,2431.9,0.41129]
[1728369412129,0.81168,2432.1,2431.8,0.3587]
[1728369412434,0.4004,2432.1,2432.0,0.41128]
[1728369413330,0.81167,2432.1,2432.0,0.41128]
[1728369413529,0.81167,2432.1,2431.8,0.41131]
[1728369413530,4.63638,2432.1,2431.8,0.41131]
[1728369413730,0.4113,2431.9,2431.8,0.41131]
[1728369414730,0.41129,2432.0,2431.8,0.41131]
[1728369415723,0.41129,2432.0,2431.5,3.5992]
[1728369416033,0.4113,2431.9,2431.8,0.41131]
[1728369416335,3.6082,2432.1,2431.6,0.3589]
[1728369416635,0.41133,2431.8,2431.6,0.41134]
[1728369416930,0.4113,2431.9,2431.6,0.41134]
[1728369417135,0.41133,2431.8,2431.6,0.41134]
[1728369417435,0.41133,2431.7,2431.6,0.41135]
[1728369417637,0.83342,2431.8,2431.3,3.9734]
[1728369417825,0.83342,2431.8,2431.7,0.41133]
[1728369418833,0.41133,2431.7,2431.6,0.41134]
[1728369419034,1.02834,2431.7,2431.1,3.306]
[1728369419233,0.843,2431.6,2431.5,0.41137]
[1728369419436,1.25435,2431.6,2431.5,0.41137]
[1728369420334,0.843,2431.6,2431.1,3.21]
[1728369420542,0.843,2431.6,2431.4,0.41138]
[1728369420729,1.25435,2431.6,2431.5,0.41137]
[1728369420936,0.843,2431.6,2431.5,0.41137]
[1728369421641,1.25435,2431.6,2431.5,0.41137]
[1728369422542,1.25435,2431.6,2431.4,0.41137]
[1728369422940,1.25435,2431.6,2431.1,4.23858]
[1728369423241,1.25435,2431.6,2431.5,0.41137]
[1728369424448,0.843,2431.6,2431.5,0.41137]
[1728369424749,3.6299,2431.8,2431.5,7.3228]
[1728369424750,0.4221,2431.8,2431.5,7.3228]
[1728369424946,0.4221,2431.8,2431.7,0.41133]
[1728369425445,0.4221,2431.8,2431.6,0.749]
[1728369425648,0.83342,2431.8,2431.7,0.41133]
[1728369425838,0.4221,2431.8,2431.7,0.41133]
[1728369426039,0.83342,2431.8,2431.7,0.41133]
[1728369426947,0.4221,2431.8,2431.7,0.41133]
[1728369427147,0.83639,2432.0,2431.8,0.4113]
[1728369427346,0.833,2432.0,2431.8,0.4113]
[1728369427544,0.4113,2431.9,2431.8,0.4113]
[1728369427941,0.41128,2432.1,2431.9,0.41129]
[1728369428139,0.41128,2432.1,2431.6,0.749]
[1728369428346,0.41128,2432.1,2431.6,1.77737]
[1728369428545,0.41128,2432.1,2432.0,0.41128]
[1728369428943,0.41128,2432.1,2431.9,0.41129]
[1728369429137,0.41128,2432.1,2432.0,0.41128]
[1728369429449,0.41129,2432.0,2431.9,0.41129]
[1728369430046,0.41128,2432.1,2432.0,0.41128]
[1728369435461,1.02799,2432.6,2432.0,0.41128]
[1728369435462,0.11974976,2434.1,2433.2,3.2078]
[1728369435662,3.2078,2435.1,2434.6,0.41083]
[1728369435948,0.8182,2435.3,2434.9,3.21]
[1728369436151,0.8182,2435.3,2434.7,3.62081]
[1728369436152,1.22893,2435.3,2434.7,3.62081]
[1728369436347,0.41075,2435.2,2434.7,3.21]
[1728369436554,4.0282,2435.3,2434.5,3.2078]
[1728369436854,4.43893,2435.3,2434.7,0.41082]
[1728369437051,4.0282,2435.3,2434.8,3.2078]
[1728369437258,4.0282,2435.3,2434.8,3.61861]
[1728369438153,4.0282,2435.3,2434.8,3.6186]
[1728369438356,4.0282,2435.3,2434.8,3.2078]
[1728369438751,4.0282,2435.3,2434.9,0.41079]
[1728369438955,4.0282,2435.3,2434.8,3.2078]
[1728369439154,4.0282,2435.3,2434.9,0.41079]
[1728369441054,4.0282,2435.3,2434.8,3.2078]
[1728369441253,3.21,2435.2,2434.8,3.6186]
[1728369441663,3.21,2435.2,2434.8,3.2078]
[1728369441965,3.21,2435.2,2434.8,3.6186]
[1728369443859,3.21,2435.2,2434.9,0.41079]
[1728369444059,3.21,2435.2,2434.9,0.41078]
[1728369444766,3.21,2435.2,2434.8,3.2078]
[1728369444767,4.1064,2435.1,2434.8,0.41081]
[1728369444953,4.1072,2435.1,2434.8,0.41081]
[1728369445156,4.1072,2435.0,2434.8,0.41081]
[1728369445359,7.3164,2435.2,2434.8,0.41081]
[1728369445660,4.0282,2435.3,2434.8,3.2078]
[1728369445860,4.0282,2435.3,2435.0,0.41077]
[1728369446062,0.41083,2434.8,2434.4,0.50688]
[1728369446268,0.41083,2434.8,2434.4,0.41088]
[1728369446269,3.21,2434.5,2434.4,0.41088]
[1728369446464,2.59323077,2434.5,2434.4,0.41088]
[1728369446668,2.59323077,2434.5,2434.0,0.096]
[1728369446869,2.59323077,2434.5,2434.3,0.41089]
[1728369447161,3.21,2434.7,2434.5,0.41085]
[1728369447863,3.21,2434.7,2434.1,3.2078]
[1728369447864,3.21,2434.7,2434.4,0.41087]
[1728369448059,3.21,2434.7,2434.1,3.2078]
[1728369448254,3.21,2434.7,2434.4,0.41088]
[1728369448766,3.21,2434.7,2434.1,3.2078]
[1728369448956,3.21,2434.7,2434.4,0.41087]
[1728369449361,3.21,2434.7,2434.5,0.41086]
[1728369449760,7.3172,2434.7,2434.5,0.41086]
[1728369450066,7.3172,2434.7,2434.4,0.41087]
[1728369450263,3.21,2434.7,2434.4,0.41087]
[1728369451062,3.21,2434.7,2434.1,3.2078]
[1728369451566,3.62083,2434.7,2434.4,0.41087]
[1728369454359,3.21,2434.7,2434.4,0.41087]
[1728369454559,0.41087,2434.5,2434.3,0.41088]
[1728369454862,3.21,2434.5,2434.1,3.2078]
[1728369455061,3.21,2434.5,2434.1,3.61872]
[1728369455271,0.4109,2434.3,2434.1,3.61872]
[1728369455476,3.21,2434.5,2434.1,3.2078]
[1728369455671,0.41088,2434.4,2434.2,0.4109]
[1728369456968,3.21,2434.5,2434.1,3.2078]
[1728369457165,0.41091,2434.3,2434.1,3.2078]
[1728369457566,0.41091,2434.3,2434.1,3.61871]
[1728369457763,3.21,2434.5,2434.1,3.2078]
[1728369457764,0.41091,2434.2,2434.1,3.2078]
[1728369457967,0.41091,2434.2,2434.0,0.41093]
[1728369458171,3.21,2434.3,2434.1,0.41092]
[1728369458376,3.6209,2434.3,2434.1,0.41092]
[1728369458670,3.21,2434.3,2433.8,3.2078]
[1728369458872,0.41092,2434.2,2434.0,0.41094]
[1728369459472,0.41092,2434.2,2434.1,0.41093]
[1728369460765,3.6209,2434.3,2434.1,0.41093]
[1728369462065,3.6209,2434.3,2433.8,3.2078]
[1728369462368,0.41091,2434.2,2434.1,0.41092]
[1728369462867,3.21,2434.3,2434.0,0.41093]
[1728369462868,0.41093,2434.1,2434.0,0.41093]
[1728369463065,0.41096,2434.0,2433.6,3.3038]
[1728369463261,0.41096,2433.9,2433.8,0.41097]
[1728369463968,0.79826,2434.0,2433.8,0.41097]
[1728369464274,0.41096,2433.9,2433.8,0.41097]
[1728369464574,0.41096,2433.9,2433.3,13.5918]
[1728369464575,0.41098,2433.8,2433.3,13.5918]
[1728369464871,0.41098,2433.8,2433.6,0.411]
[1728369464872,0.80578,2433.8,2433.6,0.411]
[1728369465068,0.41099,2433.7,2433.5,0.41102]
[1728369465572,0.41099,2433.7,2433.6,0.41101]
[1728369465973,4.51979,2433.7,2433.6,0.41101]
[1728369466271,7.3188,2433.7,2433.6,0.41101]
[1728369466668,7.72979,2433.7,2433.6,0.41101]
[1728369467072,0.41102,2433.6,2433.4,0.41103]
[1728369467469,0.3948,2433.8,2433.7,0.41099]
[1728369467873,4.5036,2433.8,2433.7,0.41099]
[1728369469875,4.91458,2433.8,2433.7,0.41099]
[1728369470667,0.80578,2433.8,2433.7,0.41099]
[1728369471376,0.80578,2433.8,2433.3,3.2078]
[1728369471575,0.41099,2433.7,2433.6,0.411]
[1728369472468,0.41099,2433.7,2433.3,3.2078]
[1728369472670,0.41102,2433.6,2433.5,0.41102]
[1728369472881,0.41104,2433.5,2433.4,0.41105]
[1728369473176,3.21,2433.6,2433.5,0.41103]
[1728369473578,3.62101,2433.6,2433.5,0.41103]
[1728369474481,0.41103,2433.5,2433.4,0.41104]
[1728369475078,0.41105,2433.4,2433.3,3.61886]
[1728369475477,0.41104,2433.5,2433.4,0.41105]
[1728369475676,0.41104,2433.5,2433.3,3.2078]
[1728369475875,0.41104,2433.5,2433.4,0.41105]
[1728369476082,3.21,2433.6,2433.3,3.2078]
[1728369476280,0.41104,2433.5,2433.4,0.41104]
[1728369476473,3.21,2433.6,2433.3,3.2078]
[1728369476679,3.62105,2433.4,2433.3,3.2078]
[1728369476879,0.41106,2433.3,2433.2,0.41107]
[1728369477583,4.52066,2433.3,2433.2,0.41107]
[1728369478179,0.41108,2433.2,2433.1,0.41109]
[1728369479377,0.4111,2433.1,2433.0,0.4111]
[1728369479582,0.41111,2433.0,2432.9,3.61892]
[1728369479976,0.41109,2433.2,2433.1,0.41109]
[1728369480283,4.40197,2433.3,2433.2,0.41108]
[1728369480491,3.9909,2433.3,2432.9,3.2078]
[1728369480686,0.41108,2433.2,2433.1,0.41109]
[1728369481577,1.19197,2433.3,2433.2,0.41108]
[1728369482678,4.40197,2433.3,2433.2,0.41108]
[1728369483282,1.02748,2433.8,2433.0,1.02779]
[1728369483485,0.41105,2433.4,2433.3,0.41106]
[1728369483684,3.21,2433.5,2432.9,4.27820766]
[1728369483881,0.4111,2433.1,2433.0,0.4111]
[1728369484081,3.21,2433.3,2432.9,3.2078]
[1728369484382,0.82005,2433.4,2433.3,0.41106]
[1728369484787,0.41107,2433.3,2433.2,0.41107]
[1728369485982,0.82005,2433.4,2433.3,0.41106]
[1728369486384,0.409,2433.4,2432.9,3.2078]
[1728369486586,0.41107,2433.3,2433.2,0.41107]
[1728369488687,0.41108,2433.2,2433.1,0.41109]
[1728369489591,0.82538,2433.2,2433.1,0.41109]
[1728369489987,4.23759,2433.5,2432.9,3.2078]
[1728369490187,4.65189,2433.5,2433.2,0.41107]
[1728369490386,0.41106,2433.3,2433.2,0.41107]
[1728369491893,4.65189,2433.5,2432.9,3.2078]
[1728369492398,0.41107,2433.3,2433.2,0.41107]
[1728369493399,3.6243,2433.5,2432.9,3.2078]
[1728369493603,0.41106,2433.4,2433.3,0.41106]
[1728369493904,0.41106,2433.4,2432.9,4.23561]
[1728369493905,0.41107,2433.3,2433.2,0.41107]
[1728369494500,3.6243,2433.5,2432.9,3.2078]
[1728369494501,0.41105,2433.4,2433.3,0.41105]
[1728369495599,4.52065,2433.4,2433.3,0.41105]
[1728369495908,0.41105,2433.4,2433.3,0.41105]
[1728369496306,4.52065,2433.4,2433.3,0.41105]
[1728369499811,4.1096,2433.4,2432.9,4.23562]
[1728369500004,0.41107,2433.3,2433.2,0.41106]
[1728369501014,0.41106,2433.4,2433.3,0.41105]
[1728369502915,0.41107,2433.3,2433.2,0.41107]
[1728369503112,1.8943,2433.5,2433.0,3.2078]
[1728369503312,0.41106,2433.4,2433.3,0.41106]
[1728369505320,0.41107,2433.3,2433.2,0.41107]
[1728369509615,1.89107,2433.3,2433.2,0.41107]
[1728369516121,0.4111,2433.1,2433.0,3.2078]
[1728369516423,0.41115,2432.8,2432.7,0.41115]
[1728369516619,1.89115,2432.8,2432.7,0.41115]
[1728369517322,1.48,2432.9,2432.6,3.2078]
[1728369517518,1.48,2432.9,2432.8,0.41115]
[1728369518120,1.89113,2432.9,2432.8,0.98607147]
[1728369518320,1.48,2432.9,2432.8,0.41115]
[1728369518522,1.89113,2432.9,2432.8,0.98600307]
[1728369518825,1.89113,2432.9,2432.8,0.41115]
[1728369520432,0.41115,2432.8,2432.7,0.41115]
[1728369520732,1.89116,2432.8,2432.7,0.41116]
[1728369522132,0.41114,2432.9,2432.8,0.41114]
[1728369522432,0.4106,2433.0,2432.7,0.41115]
[1728369522433,1.89116,2432.8,2432.7,0.41115]
[1728369526228,0.4106,2433.0,2432.6,3.2078]
[1728369526429,0.4106,2433.0,2432.9,0.41113]
[1728369527534,2.30171,2433.0,2432.9,0.41113]
[1728369527930,2.30171,2433.0,2432.6,3.2078]
[1728369527931,1.02783,2432.9,2432.6,3.2078]
[1728369528131,1.48,2432.7,2432.6,3.61898]
[1728369528331,0.4106,2433.0,2432.6,3.61898]
[1728369528332,1.48,2432.8,2432.7,0.41116]
[1728369529132,0.82172,2433.0,2432.9,0.41113]
[1728369529332,2.30172,2433.0,2432.9,0.41113]
[1728369529530,6.41212,2433.0,2432.9,0.41113]
[1728369530430,8.14212,2433.0,2432.9,0.41113]
[1728369530935,4.15529994,2433.0,2432.9,0.41113]
[1728369531137,8.26569994,2433.0,2432.9,0.41113]
[1728369531338,0.41116,2432.7,2432.6,3.61897]
[1728369531538,3.62116,2432.7,2432.6,3.61897]
[1728369533140,3.21,2432.7,2432.6,3.61897]
[1728369533632,3.6016,2432.7,2432.6,3.61897]
[1728369534032,4.01276,2432.7,2432.6,3.61897]
[1728369534240,4.0131,2432.7,2432.6,3.61897]
[1728369535038,4.42426,2432.7,2432.6,3.61897]
[1728369535639,3.21,2432.7,2432.6,3.61897]
[1728369535842,4.03171,2433.0,2432.9,0.41113]
[1728369536039,3.6206,2433.0,2432.9,0.41113]
[1728369536542,0.4106,2433.0,2432.9,0.41113]
[1728369537135,4.03171,2433.0,2432.9,0.41113]
[1728369537443,3.6206,2433.0,2432.6,3.2078]
[1728369537645,3.6206,2433.0,2432.8,0.41114]
[1728369537646,0.41113,2432.9,2432.8,0.41114]
[1728369538142,3.6206,2433.0,2432.9,0.41113]
[1728369538337,3.21,2433.0,2432.9,0.41113]
[1728369539241,3.62111,2433.0,2432.9,0.41113]
[1728369539836,0.41113,2432.9,2432.8,0.41113]
[1728369540636,0.41116,2432.8,2432.7,0.41116]
[1728369540835,0.4043,2432.8,2432.6,3.2078]
[1728369541032,0.82026,2432.7,2432.6,3.61897]
[1728369541238,0.4091,2432.7,2432.6,3.61897]
[1728369542344,3.21,2432.8,2432.7,0.41116]
[1728369543350,3.21,2432.8,2432.6,3.2078]
[1728369543640,0.41116,2432.7,2432.6,3.2078]
[1728369544648,0.41116,2432.7,2432.6,3.61898]
[1728369545243,0.82356,2432.7,2432.6,3.2078]
[1728369545549,0.41118,2432.6,2432.3,0.41122]
[1728369545739,0.41121,2432.4,2432.3,0.41122]
[1728369546044,3.62121,2432.4,2432.3,0.41123]
[1728369546548,3.21,2432.4,2432.3,0.41123]
[1728369547649,0.83531,2432.5,2432.0,4.236]
[1728369547650,0.4241,2432.5,2432.0,4.236]
[1728369547851,0.4241,2432.5,2432.4,0.41121]
[1728369549551,0.8353,2432.5,2432.4,0.41121]
[1728369550454,0.4241,2432.5,2432.4,0.41121]
[1728369550647,4.5353,2432.5,2431.7,4.48520766]
[1728369550952,3.21,2432.3,2432.2,0.41125]
[1728369551149,3.21,2432.3,2431.9,0.3859]
[1728369551348,0.41126,2432.2,2431.7,3.2078]
[1728369551649,3.21,2432.1,2431.7,3.2078]
[1728369551849,0.3999,2432.0,2431.9,0.41129]
[1728369552052,4.02774,2432.3,2432.2,0.41125]
[1728369552354,2.60387,2432.9,2432.1,3.61906]
[1728369552577,3.2078,2435.8,2433.8,3.2078]
[1728369552747,40.8,2435.7,2435.3,0.41072]
[1728369553050,40.8,2435.7,2435.3,0.41071]
[1728369553350,40.8,2435.7,2435.5,3.2078]
[1728369553351,3.21,2435.6,2435.5,3.2078]
[1728369553744,7.3156,2435.6,2435.5,3.2078]
[1728369554449,4.1056,2435.6,2435.5,3.2078]
[1728369555950,40.8,2435.7,2435.5,3.2078]
[1728369557454,44.9056,2435.7,2435.2,3.2078]
[1728369557754,40.8,2435.7,2435.2,3.2078]
[1728369557953,40.8,2435.7,2435.4,0.4107]
[1728369558151,40.8,2435.7,2435.2,3.2078]
[1728369558354,40.8,2435.7,2435.3,0.41072]
[1728369558851,40.8,2435.7,2435.2,3.2078]
[1728369559050,40.8,2435.7,2435.3,0.41071]
[1728369560954,40.8,2435.7,2435.2,3.2078]
[1728369561356,40.8,2435.7,2435.3,0.41072]
[1728369561959,3.95,2435.6,2435.4,0.41071]
[1728369562161,3.95,2435.6,2435.2,3.2078]
[1728369562357,3.95,2435.6,2435.3,0.41071]
[1728369562756,40.8,2435.7,2435.5,3.2078]
[1728369565661,0.41067,2435.6,2435.5,3.2078]
[1728369566058,41.3323145,2435.7,2435.5,3.2078]
[1728369567064,40.9216545,2435.7,2435.5,3.2078]
[1728369567751,0.41067,2435.6,2435.5,3.2078]
[1728369570355,4.36067,2435.6,2435.5,3.2078]
[1728369573053,11.1078,2435.6,2433.9,3.5984]
[1728369573258,3.95,2434.5,2433.9,3.5984]
[1728369573464,0.41087,2434.5,2434.2,0.4109]
[1728369573663,40.8,2434.4,2434.3,0.41089]
[1728369573857,40.8,2434.4,2434.2,0.4109]
[1728369574663,44.01,2434.4,2434.2,0.4109]
[1728369575168,44.01,2434.4,2434.0,0.41094]
[1728369575169,0.4109,2434.3,2434.0,0.41094]
[1728369575559,44.01,2434.4,2433.9,3.5984]
[1728369575757,0.41093,2434.1,2433.9,3.5984]
[1728369576066,3.21,2434.2,2433.9,3.5984]
[1728369576260,0.41094,2434.0,2433.9,3.5984]
[1728369576466,0.41094,2434.0,2433.9,4.1088]
[1728369577166,3.21,2434.2,2433.7,0.2022]
[1728369577357,3.21,2434.2,2433.9,0.41096]
[1728369577358,0.41094,2434.1,2433.9,0.41096]
[1728369577555,44.01,2434.4,2433.8,7.3166]
[1728369577776,3.21,2434.8,2434.1,3.2078]
[1728369578061,3.62082,2434.8,2434.6,0.41084]
[1728369578272,0.41083,2434.7,2434.5,0.41085]
[1728369578673,0.41084,2434.7,2434.4,0.41086]
[1728369578871,0.41084,2434.6,2434.4,0.41086]
[1728369579265,0.41084,2434.6,2434.5,0.41086]
[1728369579462,0.41084,2434.6,2434.4,0.41087]
[1728369580464,3.21,2434.6,2434.1,3.2078]
[1728369580663,0.41087,2434.5,2434.1,3.2078]
[1728369580872,3.21,2434.6,2434.1,3.2078]